bitfinex-derivatives/quotes_SOLF0:USTF0_20250909
["timestamp","ask_amount","ask_price","bid_price","bid_amount"]
[1757377853110,7.3,213.34,213.3,0.02978782]
[1757377853314,2.65849067,213.35,213.3,0.02978782]
[1757377853516,7.3,213.34,213.3,0.02978782]
[1757377853719,2.65849067,213.35,213.3,0.02978782]
[1757377853917,7.3,213.34,213.3,0.02978782]
[1757377854923,2.65849067,213.35,213.3,0.02978782]
[1757377855116,7.3,213.34,213.3,0.02978782]
[1757377855317,5.27269285,213.36,213.3,0.02978782]
[1757377855517,2.65849067,213.35,213.3,0.02978782]
[1757377855824,7.3,213.34,213.3,0.02978782]
[1757377856025,7.3,213.34,213.3,7.11978782]
[1757377856524,2.65849067,213.35,213.3,7.11978782]
[1757377857318,7.3,213.34,213.3,7.11978782]
[1757377857518,7.3,213.34,213.3,0.02978782]
[1757377857913,2.65849067,213.35,213.3,0.02978782]
[1757377858314,7.3,213.34,213.3,0.02978782]
[1757377858528,2.65849067,213.35,213.3,0.02978782]
[1757377859324,7.3,213.34,213.3,0.02978782]
[1757377859824,2.65849067,213.35,213.3,0.02978782]
[1757377860319,7.3,213.34,213.3,0.02978782]
[1757377860620,2.65849067,213.35,213.3,0.02978782]
[1757377860822,5.27269285,213.36,213.3,7.11978782]
[1757377861027,7.33478337,213.36,213.3,7.11978782]
[1757377861731,12.57269285,213.36,213.3,0.02978782]
[1757377863420,7.3,213.34,213.3,0.02978782]
[1757377863626,5.23790948,213.35,213.3,0.02978782]
[1757377864128,12.53790948,213.34,213.3,0.02978782]
[1757377864330,5.23790948,213.33,213.3,0.02978782]
[1757377864528,7.3,213.31,213.3,0.02978782]
[1757377865924,7.3,213.33,213.3,0.02978782]
[1757377866325,12.53790948,213.33,213.3,0.02978782]
[1757377866522,7.3,213.32,213.3,0.02978782]
[1757377867724,5.23790948,213.33,213.3,0.02978782]
[1757377867930,5.23790948,213.34,213.3,0.02978782]
[1757377868127,7.3,213.33,213.3,0.02978782]
[1757377868330,12.53790948,213.33,213.3,0.02978782]
[1757377868531,5.23790948,213.33,213.3,0.02978782]
[1757377868928,7.3,213.32,213.3,0.02978782]
[1757377869128,5.23790948,213.33,213.3,0.02978782]
[1757377869429,7.3,213.32,213.3,0.02978782]
[1757377869731,7.89164759,213.36,213.3,7.11978782]
[1757377869732,12.53790948,213.34,213.3,7.11978782]
[1757377869932,7.3,213.33,213.3,0.02978782]
[1757377870330,12.53790948,213.33,213.3,0.02978782]
[1757377870727,7.3,213.32,213.3,0.02978782]
[1757377871934,5.23790948,213.33,213.3,7.11978782]
[1757377872427,5.23790948,213.34,213.3,0.02978782]
[1757377872735,5.23790948,213.33,213.31,7.09]
[1757377873631,5.23790948,213.35,213.3,0.02978782]
[1757377873934,5.23790948,213.35,213.31,7.32]
[1757377874335,12.90790948,213.35,213.31,7.32]
[1757377875029,7.67,213.34,213.3,0.02978782]
[1757377875230,12.90790948,213.34,213.3,0.02978782]
[1757377875432,7.67,213.32,213.3,0.02978782]
[1757377875636,5.23790948,213.33,213.3,7.34978782]
[1757377875830,7.67,213.32,213.3,0.02978782]
[1757377877827,5.23790948,213.33,213.3,0.02978782]
[1757377878130,7.67,213.31,213.3,0.02978782]
[1757377878334,12.90790948,213.31,213.3,0.02978782]
[1757377879036,7.67,213.31,213.3,0.02978782]
[1757377879433,5.23790948,213.31,213.3,0.02978782]
[1757377879639,5.23790948,213.32,213.3,7.34978782]
[1757377879833,12.90790948,213.33,213.3,7.34978782]
[1757377880230,7.67,213.32,213.3,0.02978782]
[1757377880429,7.67,213.31,213.3,0.02978782]
[1757377880633,5.23790948,213.32,213.3,0.02978782]
[1757377881130,7.67,213.31,213.3,0.02978782]
[1757377881634,5.23790948,213.32,213.3,0.02978782]
[1757377881839,7.67,213.31,213.3,0.02978782]
[1757377882941,9.83271736,213.31,213.3,0.02978782]
[1757377883137,8.13,213.31,213.3,0.02978782]
[1757377883331,8.13,213.31,213.19,7.32]
[1757377883332,7.67,213.3,213.22,1.70271736]
[1757377883536,7.67,213.23,213.2,1.70271736]
[1757377883741,12.91065558,213.24,213.2,9.02271736]
[1757377883938,5.24065558,213.25,213.21,7.32]
[1757377884353,12.91065558,213.25,213.22,1.70271736]
[1757377884643,12.94312567,213.25,213.22,1.70271736]
[1757377885244,7.70247009,213.25,213.22,1.70271736]
[1757377885645,0.03247009,213.25,213.23,7.32]
[1757377885845,0.03247009,213.25,213.24,9.02271736]
[1757377886840,0.03247009,213.25,213.24,9.48271736]
[1757377887045,5.24065558,213.33,213.25,7.32]
[1757377887245,5.24065558,213.34,213.31,7.32]
[1757377887446,5.24065558,213.34,213.3,1.70271736]
[1757377887637,7.67,213.36,213.32,1.70271736]
[1757377887638,12.91065558,213.36,213.32,1.70271736]
[1757377887838,5.24065558,213.36,213.33,7.32]
[1757377888042,12.91065558,213.34,213.23,12.32]
[1757377888237,5.24065558,213.33,213.27,1.70271736]
[1757377888645,0.03180767,213.32,213.27,1.70271736]
[1757377888850,0.03180767,213.32,213.27,9.02271736]
[1757377889053,0.03180767,213.32,213.23,12.32]
[1757377889054,7.67,213.31,213.23,7.32]
[1757377889253,12.91065558,213.31,213.25,1.70271736]
[1757377890357,5.24065558,213.31,213.26,1.70271736]
[1757377890556,7.67,213.3,213.26,1.70271736]
[1757377890759,5.24065558,213.31,213.26,1.70271736]
[1757377891457,7.67,213.3,213.23,7.32]
[1757377891659,7.67,213.3,213.24,1.70271736]
[1757377891660,12.91065558,213.3,213.24,1.70271736]
[1757377891859,5.24065558,213.29,213.24,1.70271736]
[1757377892160,7.67,213.28,213.24,9.02271736]
[1757377892754,7.67,213.28,213.24,1.70271736]
[1757377893663,12.91065558,213.28,213.23,1.70271736]
[1757377893860,7.67,213.26,213.23,1.70271736]
[1757377894256,7.67,213.26,213.2,128.32]
[1757377894257,7.67,213.26,213.2,7.32]
[1757377894556,7.67,213.26,213.22,1.70271736]
[1757377894758,7.67,213.25,213.15,322.5]
[1757377895062,7.67,213.24,213.2,1.70271736]
[1757377895361,7.67,213.21,213.2,1.70271736]
[1757377896062,0.03009129,213.22,213.2,1.70271736]
[1757377896262,7.70009129,213.22,213.2,1.70271736]
[1757377896665,7.67,213.21,213.2,1.70271736]
[1757377896863,7.67,213.21,213.15,322.5]
[1757377897254,7.67,213.21,213.06,5.25565172]
[1757377897255,7.67,213.21,213.07,7.32]
[1757377897461,0.03009129,213.22,213.07,7.32]
[1757377897462,7.67,213.18,213.07,7.32]
[1757377897660,7.67,213.18,213.1,1.70271736]
[1757377897858,1.70271736,213.17,213.1,1.70271736]
[1757377898059,0.03381561,213.15,213.1,1.73319969]
[1757377898258,7.70381561,213.15,213.1,9.05319969]
[1757377899163,7.70381561,213.15,213.1,7.35048233]
[1757377899360,7.67,213.14,213.1,9.05319969]
[1757377899563,7.67,213.14,213.1,0.03048233]
[1757377900260,9.37271736,213.14,213.1,0.03048233]
[1757377900464,7.67,213.13,213.1,0.03048233]
[1757377900763,7.67,213.14,213.1,0.03048233]
[1757377901067,1.70271736,213.14,213.1,0.03048233]
[1757377901465,1.73653297,213.15,213.1,0.03048233]
[1757377902264,0.03381561,213.15,213.1,0.03048233]
[1757377902569,1.73653297,213.15,213.1,0.03048233]
[1757377902964,9.37271736,213.11,213.1,0.03048233]
[1757377903572,7.67,213.11,213.1,0.03048233]
[1757377905368,21.69,213.1,212.79,7.44]
[1757377905569,7.62,212.91,212.79,7.44]
[1757377905868,7.62,212.89,212.79,7.44]
[1757377906072,7.62,212.89,212.81,1.70271736]
[1757377906372,7.62,212.89,212.83,1.70271736]
[1757377906574,0.03096697,212.87,212.79,7.44]
[1757377906762,0.03096697,212.87,212.82,1.70271736]
[1757377906967,0.03096697,212.87,212.71,0.81787095]
[1757377906968,0.03096697,212.87,212.78,11.3]
[1757377907163,7.65096697,212.87,212.78,7.44]
[1757377907369,7.62,212.87,212.8,1.70271736]
[1757377907569,0.03141471,212.85,212.78,7.44]
[1757377907875,1.70271736,212.91,212.84,7.44]
[1757377908073,7.62,212.92,212.69,7.44]
[1757377908267,0.03137373,212.84,212.79,1.70271736]
[1757377908467,7.65137373,212.84,212.75,7.44]
[1757377908669,7.62,212.84,212.78,1.70271736]
[1757377908865,7.62,212.81,212.66,7.44]
[1757377909068,7.62,212.81,212.73,1.70271736]
[1757377909272,1.70271736,212.8,212.72,1.70271736]
[1757377909473,0.03008702,212.79,212.72,1.70271736]
[1757377909670,0.03008702,212.79,212.75,7.44]
[1757377909974,1.70271736,212.84,212.77,7.44]
[1757377910173,7.62,212.9,212.8,1.70271736]
[1757377910468,0.03460029,212.87,212.77,7.44]
[1757377910870,0.03460029,212.87,212.83,7.44]
[1757377911072,0.03460029,212.87,212.83,126.24]
[1757377911274,0.03460029,212.87,212.82,123.0104033]
[1757377912074,0.03460029,212.87,212.83,118.84]
[1757377912271,0.03460029,212.87,212.84,7.44]
[1757377912474,0.03460029,212.87,212.83,118.9]
[1757377912676,0.03460029,212.87,212.83,126.34]
[1757377912873,0.03460029,212.87,212.84,7.44]
[1757377913069,0.03460029,212.87,212.86,7.44]
[1757377913466,7.62,213.01,212.86,123.7304033]
[1757377913669,7.62,213.01,212.9,4.2104033]
[1757377913876,7.62,213.01,212.91,19.5]
[1757377914078,7.62,213.08,212.91,19.5]
[1757377914278,7.62,213.08,212.94,4.2104033]
[1757377914680,7.62,213.08,212.91,19.5]
[1757377914681,7.62,213.08,212.98,4.2104033]
[1757377914883,7.62,213.08,212.92,4.2104033]
[1757377915487,7.62,213.08,212.93,1.63]
[1757377915781,7.62,213.08,212.97,1.63]
[1757377916675,323.18,213.13,213.0,4.2104033]
[1757377916880,7.62,213.13,213.0,4.2104033]
[1757377917275,7.62,213.13,213.04,4.2104033]
[1757377917472,4.223,213.1,213.04,4.2104033]
[1757377917678,4.223,213.1,213.04,5.8404033]
[1757377917980,0.0354654,213.09,213.05,0.03175026]
[1757377918382,0.0354654,213.09,213.06,1.63]
[1757377918683,0.0354654,213.09,213.08,4.2104033]
[1757377918880,4.2223,213.14,213.08,5.8404033]
[1757377919478,69.9025,213.14,213.08,5.8404033]
[1757377919983,69.9025,213.14,213.08,2.13031871]
[1757377920382,7.62,213.22,213.11,4.2104033]
[1757377920579,73.2616,213.26,213.16,1.63]
[1757377920887,4.2201,213.24,213.19,4.2104033]
[1757377921182,65.6537,213.22,213.19,0.03256681]
[1757377921379,135.5282,213.22,213.19,0.03256681]
[1757377921583,7.62,213.2,213.19,0.03256681]
[1757377922086,65.6565,213.21,213.19,0.03256681]
[1757377922682,73.2765,213.21,213.19,0.03256681]
[1757377922883,7.62,213.2,213.19,0.03256681]
[1757377923485,7.62,213.2,213.19,0.53288552]
[1757377924682,7.62,213.2,213.09,4.2104033]
[1757377925182,7.62,213.14,212.99,4.2104033]
[1757377925374,7.62,213.12,212.99,4.2104033]
[1757377925681,4.2104033,213.11,212.95,6.3804033]
[1757377925885,7.62,213.1,212.95,6.3804033]
[1757377926185,7.62,213.1,212.91,4.2104033]
[1757377926684,7.62,213.06,212.91,4.2104033]
[1757377926985,7.62,213.04,212.91,4.2104033]
[1757377929479,10.26,213.05,212.87,362.3504033]
[1757377929689,0.03494446,213.0,212.87,362.3504033]
[1757377929889,7.62,212.99,212.94,0.029699]
[1757377930090,7.62,213.03,212.94,0.029699]
[1757377930382,7.62,212.98,212.94,0.029699]
[1757377930778,0.03568269,212.99,212.94,0.029699]
[1757377930977,7.62,212.98,212.85,2.17]
[1757377931192,4.2104033,212.96,212.78,4.2104033]
[1757377931380,7.62,212.95,212.79,23.7]
[1757377931785,4.2104033,212.96,212.79,23.7]
[1757377932086,7.62,212.95,212.79,23.7]
[1757377932286,0.03455852,212.9,212.79,23.7]
[1757377932481,0.03455852,212.9,212.83,2.2]
[1757377935591,0.03455852,212.9,212.84,4.2104033]
[1757377936786,0.03455852,212.9,212.61,3.9471485]
[1757377936787,4.2104033,212.88,212.69,2.2]
[1757377937088,7.24,212.87,212.71,4.2104033]
[1757377937387,0.03089407,212.81,212.75,4.2104033]
[1757377937781,7.24,212.87,212.79,4.2104033]
[1757377937981,0.0311857,212.8,212.79,4.2104033]
[1757377938181,7.24,212.92,212.79,6.4104033]
[1757377938590,7.24,212.92,212.79,2.2]
[1757377939087,7.24,212.92,212.68,4.2104033]
[1757377939088,7.24,212.82,212.65,2.2]
[1757377939290,7.24,212.82,212.67,2.2]
[1757377941090,15.44,212.81,212.67,2.2]
[1757377941294,35.11287154,212.8,212.67,2.2]
[1757377941593,41.02,212.79,212.67,2.2]
[1757377942290,7.24,212.69,212.56,2.2]
[1757377942491,7.24,212.74,212.57,4.46]
[1757377942690,7.24,212.74,212.58,2.2]
[1757377943797,7.24,212.79,212.62,6.77287154]
[1757377943989,7.24,212.79,212.63,2.2]
[1757377944390,7.24,212.85,212.63,2.2]
[1757377944692,7.24,212.85,212.68,2.2]
[1757377945293,0.03548885,212.79,212.72,2.2]
[1757377946090,0.03548885,212.79,212.72,2.68]
[1757377947098,0.03548885,212.79,212.68,315.82]
[1757377949495,0.03548885,212.79,212.69,2.2]
[1757377949889,0.03548885,212.79,212.7,122.66]
[1757377951898,0.03548885,212.79,212.71,2.2]
[1757377952699,0.03548885,212.79,212.72,122.58]
[1757377953700,0.03548885,212.79,212.73,122.54]
[1757377953994,0.03548885,212.79,212.74,122.5]
[1757377954193,0.03548885,212.79,212.75,2.2]
[1757377954397,0.03548885,212.79,212.75,124.7]
[1757377954797,0.03548885,212.79,212.75,2.2]
[1757377954997,0.03548885,212.79,212.75,124.66]
[1757377955194,0.03548885,212.79,212.75,122.46]
[1757377955396,0.03548885,212.79,212.76,2.2]
[1757377956195,0.03548885,212.79,212.75,122.46]
[1757377956499,0.03548885,212.79,212.76,2.2]
[1757377957099,0.03548885,212.79,212.77,2.2]
[1757377957492,0.03548885,212.79,212.71,2.2]
[1757377957697,0.03548885,212.79,212.72,122.28]
[1757377958900,0.03548885,212.79,212.71,2.2]
[1757377959101,0.03548885,212.79,212.72,122.42]
[1757377959300,0.03548885,212.79,212.73,8.98287154]
[1757377959599,0.03548885,212.79,212.74,2.21]
[1757377960002,0.03548885,212.79,212.73,6.77287154]
[1757377960301,0.03548885,212.79,212.75,2.21]
[1757377960600,0.03548885,212.79,212.76,122.4]
[1757377960899,0.03548885,212.79,212.72,2.21]
[1757377961702,0.03548885,212.79,212.73,122.52]
[1757377962096,0.03548885,212.79,212.67,8.98287154]
[1757377962299,0.03548885,212.79,212.68,122.44]
[1757377962603,0.03548885,212.79,212.69,2.21]
[1757377963604,0.03548885,212.79,212.69,123.21]
[1757377964300,0.03548885,212.79,212.7,122.34]
[1757377964701,0.03548885,212.79,212.7,243.34]
[1757377965198,0.03548885,212.79,212.71,8.97287154]
[1757377965406,0.03548885,212.79,212.72,2.2]
[1757377965801,0.03548885,212.79,212.76,2.2]
[1757377966000,0.03548885,212.79,212.78,2.2]
[1757377966401,0.03548885,212.79,212.78,124.5]
[1757377968103,7.16,212.91,212.78,124.96]
[1757377968303,7.16,212.91,212.78,124.5]
[1757377968703,7.16,212.91,212.79,121.22]
[1757377969602,7.16,212.91,212.83,0.03166496]
[1757377969808,7.16,212.96,212.83,0.03166496]
[1757377970199,7.16,212.96,212.82,2.2]
[1757377970397,7.16,212.96,212.87,0.03091309]
[1757377970596,7.16,212.96,212.88,22.28]
[1757377971012,7.16,212.96,212.87,121.03091309]
[1757377971404,7.16,212.96,212.88,117.08]
[1757377972911,7.16,212.96,212.87,0.03091309]
[1757377972912,0.03096917,212.94,212.87,0.03091309]
[1757377973213,0.03096917,212.94,212.88,121.98]
[1757377975511,0.03096917,212.94,212.89,2.2]
[1757377976107,0.03096917,212.94,212.92,2.2]
[1757377976710,0.03096917,212.94,212.91,6.77287154]
[1757377977213,0.03096917,212.94,212.92,2.2]
[1757377977415,0.03096917,212.94,212.91,127.77287154]
[1757377977611,0.03096917,212.94,212.92,2.2]
[1757377977817,0.03096917,212.94,212.92,123.2]
[1757377978018,0.03096917,212.94,212.93,123.88]
[1757377978217,7.16,213.05,212.93,123.88]
[1757377978419,7.16,213.05,212.95,6.77287154]
[1757377978719,7.16,213.05,212.96,2.2]
[1757377978914,7.16,213.05,212.97,121.62]
[1757377979521,7.16,213.05,212.99,0.03175763]
[1757377980021,7.16,213.05,213.0,121.62]
[1757377980211,7.16,213.05,213.01,121.58]
[1757377981316,7.16,213.05,212.99,0.03175763]
[1757377982614,95.96548279,213.1,213.0,52.1]
[1757377982812,101.14520489,213.1,213.0,52.1]
[1757377983018,95.96548279,213.1,213.0,52.1]
[1757377983223,7.16,213.09,213.0,52.1]
[1757377983422,7.16,213.09,212.99,71.27175763]
[1757377983622,7.16,213.09,212.99,0.03175763]
[1757377983821,7.16,213.09,213.0,92.24]
[1757377984922,7.16,213.09,213.01,109.3]
[1757377985126,81.0797221,213.19,213.01,230.3]
[1757377985628,75.9,213.19,213.01,121.0]
[1757377985826,7.16,213.18,213.08,0.0338649]
[1757377987926,12.3397221,213.18,213.08,0.0338649]
[1757377988126,7.16,213.18,213.08,0.0338649]
[1757377989124,12.3397221,213.18,213.08,0.0338649]
[1757377989621,7.16,213.18,213.08,0.0338649]
[1757377992327,5.1797221,213.17,213.08,0.0338649]
[1757377992533,7.16,213.16,213.08,0.0338649]
[1757377994339,7.3,213.14,213.0,2.2]
[1757377995736,7.3,213.14,213.05,0.03059042]
[1757378002542,5.1797221,213.16,213.05,0.03059042]
[1757378002543,7.3,213.12,213.05,0.03059042]
[1757378012050,7.3,213.16,213.06,2.21]
[1757378012657,7.3,213.16,213.09,0.0313405]
[1757378012954,7.3,213.19,213.09,2.2413405]
[1757378015555,7.3,213.19,213.09,6.44438577]
[1757378018055,12.4797221,213.19,213.09,6.44438577]
[1757378020755,5.1797221,213.18,213.09,6.44438577]
[1757378021254,12.4797221,213.19,213.09,6.44438577]
[1757378021858,7.3,213.19,213.1,2.22]
[1757378024753,5.1797221,213.22,213.13,4.20304527]
[1757378024952,5.1797221,213.22,213.14,2.21]
[1757378025254,7.12,213.21,213.14,2.21]
[1757378025451,7.12,213.21,213.16,0.03474158]
[1757378026155,7.12,213.22,213.16,0.03474158]
[1757378028359,5.1797221,213.24,213.2,1.70435945]
[1757378028557,1.70435945,213.32,213.17,7.56]
[1757378028755,1.70435945,213.3,213.23,1.70435945]
[1757378030455,7.12,213.36,213.25,4.19183126]
[1757378030759,7.12,213.36,213.3,0.03178679]
[1757378034866,69.839,213.33,213.3,0.03178679]
[1757378035069,69.839,213.33,213.3,7.59178679]
[1757378035266,4.2186,213.33,213.32,0.4436]
[1757378035462,4.2186,213.33,213.3,0.03178679]
[1757378035670,69.849,213.3,213.27,4.19183126]
[1757378036467,135.479,213.3,213.27,3.126e-05]
[1757378036658,65.627,213.31,213.23,3.126e-05]
[1757378036659,69.865,213.25,213.23,3.126e-05]
[1757378036864,65.6449,213.25,213.19,4.19183126]
[1757378037065,72.7616,213.26,213.19,4.19183126]
[1757378037369,7.12,213.23,213.2,0.02965019]
[1757378037559,0.0355829,213.24,213.2,0.02965019]
[1757378038064,7.12,213.23,213.2,0.02965019]
[1757378039067,0.0355829,213.24,213.2,0.02965019]
[1757378039269,7.12,213.23,213.2,0.02965019]
[1757378039862,0.0355829,213.24,213.2,0.02965019]
[1757378041062,7.12,213.23,213.2,0.02965019]
[1757378041668,0.0355829,213.24,213.2,0.02965019]
[1757378041866,7.12,213.23,213.2,0.02965019]
[1757378042071,0.0355829,213.24,213.2,0.02965019]
[1757378042268,0.0355829,213.24,213.09,1.77]
[1757378042463,4.19183126,213.26,213.09,121.53]
[1757378042773,7.12,213.21,213.06,4.19183126]
[1757378043268,34.9,213.21,213.06,4.19183126]
[1757378043668,0.03344649,213.16,213.06,4.19183126]
[1757378043863,7.12,213.15,213.06,4.19183126]
[1757378044273,7.12,213.15,213.07,1.8]
[1757378045865,7.12,213.15,213.05,4.19183126]
[1757378046259,7.12,213.15,213.02,1.8]
[1757378046460,7.12,213.11,213.02,1.8]
[1757378046867,0.03103203,213.12,213.02,1.8]
[1757378047072,0.03103203,213.12,213.05,4.19183126]
[1757378047370,0.03103203,213.12,213.06,1.8]
[1757378047872,0.03103203,213.12,213.06,122.8]
[1757378048067,0.03103203,213.12,213.06,121.0]
[1757378048272,7.15103203,213.12,213.05,1.8]
[1757378048475,7.15103203,213.12,213.0,1.8]
[1757378048872,7.12,213.12,213.0,1.8]
[1757378049079,0.03022874,213.08,213.0,1.8]
[1757378053376,0.03022874,213.08,213.02,1.81]
[1757378055185,0.03022874,213.08,213.02,122.81]
[1757378055983,0.03022874,213.08,213.02,121.0]
[1757378056485,0.03022874,213.08,213.07,1.70598426]
[1757378057585,0.03022874,213.08,213.04,122.81]
[1757378057791,7.71,213.07,213.04,122.70598426]
[1757378058281,7.71,213.07,213.04,1.70598426]
[1757378058481,0.03022874,213.08,213.06,1.70598426]
[1757378059087,7.74022874,213.08,213.06,1.70598426]
[1757378059277,0.03022874,213.08,213.06,1.70598426]
[1757378059480,7.71,213.07,213.06,1.70598426]
[1757378059785,7.71,213.07,212.99,121.0]
[1757378059786,9.41598426,213.07,213.0,1.70598426]
[1757378059979,7.71,213.07,213.0,1.70598426]
[1757378060180,7.71,213.07,212.97,436.63]
[1757378060181,9.446213,213.08,213.02,1.70598426]
[1757378060889,7.74022874,213.08,213.04,1.70598426]
[1757378061793,0.03022874,213.08,213.06,1.70598426]
[1757378061987,0.03022874,213.08,213.06,3.51598426]
[1757378062391,0.03022874,213.08,213.06,1.70598426]
[1757378064291,0.03022874,213.08,213.03,2.66619492]
[1757378064492,0.03022874,213.08,213.04,1.81]
[1757378066391,0.03022874,213.08,212.99,2.66619492]
[1757378066592,7.71,213.07,212.97,4.47619492]
[1757378067692,7.71,213.07,213.0,2.66619492]
[1757378068293,0.03468845,213.06,213.0,2.66619492]
[1757378068998,0.03468845,213.06,213.0,4.47619492]
[1757378069798,0.03468845,213.06,213.03,2.66619492]
[1757378069998,0.03468845,213.06,213.04,1.81]
[1757378070198,0.03468845,213.06,213.03,2.66619492]
[1757378070199,7.71,213.11,213.03,4.47619492]
[1757378070399,0.03067116,213.07,213.04,1.81]
[1757378070604,0.03067116,213.07,213.03,2.66619492]
[1757378070813,0.03067116,213.07,213.04,1.81]
[1757378071603,0.03067116,213.07,213.03,2.66619492]
[1757378071799,0.03067116,213.07,213.04,1.81]
[1757378072006,0.03067116,213.07,213.03,2.66619492]
[1757378072402,0.03067116,213.07,213.04,1.81]
[1757378075000,0.03067116,213.07,213.03,2.66619492]
[1757378075509,0.03067116,213.07,213.04,1.81]
[1757378076201,0.03067116,213.07,213.03,2.66619492]
[1757378076907,0.03067116,213.07,213.04,1.81]
[1757378077306,0.03067116,213.07,213.05,1.81]
[1757378078005,0.03067116,213.07,213.04,2.66619492]
[1757378078209,0.03067116,213.07,213.05,1.81]
[1757378080504,0.03067116,213.07,213.05,1.82]
[1757378080902,0.03067116,213.07,213.04,2.66619492]
[1757378081109,7.71,213.15,213.05,1.82]
[1757378081310,7.71,213.15,213.08,2.66619492]
[1757378084900,7.71,213.15,213.07,2.66619492]
[1757378085109,7.46,213.14,213.05,125.48619492]
[1757378085307,7.46,213.13,213.05,125.48619492]
[1757378085500,7.46,213.13,213.05,123.66619492]
[1757378085706,5.18133952,213.14,213.05,123.66619492]
[1757378085910,7.46,213.13,213.05,123.66619492]
[1757378087307,7.46,213.13,213.09,1.81]
[1757378087511,5.18133952,213.16,213.09,1.81]
[1757378087904,5.18133952,213.17,213.09,1.81]
[1757378088612,7.46,213.18,213.09,1.81]
[1757378088613,12.64133952,213.18,213.11,2.66619492]
[1757378089209,5.18133952,213.17,213.11,2.66619492]
[1757378089908,7.46,213.16,213.11,2.66619492]
[1757378090109,7.46,213.16,213.05,121.0]
[1757378090312,7.46,213.14,213.04,1.81]
[1757378090512,7.46,213.14,213.07,1.81]
[1757378091114,7.46,213.14,213.06,2.66619492]
[1757378091614,0.03230162,213.12,213.06,2.66619492]
[1757378092912,0.03230162,213.12,213.09,2.66619492]
[1757378093412,0.03230162,213.12,213.09,4.47619492]
[1757378093813,7.49230162,213.12,213.09,2.66619492]
[1757378094715,7.49230162,213.12,213.06,2.66619492]
[1757378095209,12.67364114,213.12,213.03,2.66619492]
[1757378095616,12.64133952,213.12,213.03,2.66619492]
[1757378096016,0.03105277,213.1,213.03,2.66619492]
[1757378097520,0.03105277,213.1,213.04,1.81]
[1757378097714,0.03105277,213.1,213.06,2.66619492]
[1757378097918,0.03105277,213.1,213.07,2.66619492]
[1757378098114,0.03105277,213.1,213.07,4.47619492]
[1757378099221,0.03105277,213.1,213.08,1.81]
[1757378102918,0.03105277,213.1,213.07,2.66619492]
[1757378103124,0.03105277,213.1,213.07,1.81]
[1757378104624,0.03105277,213.1,213.07,4.47619492]
[1757378104817,7.46,213.09,213.07,2.66619492]
[1757378105022,7.46,213.09,213.06,1.84495512]
[1757378105218,7.46,213.09,213.06,0.03495512]
[1757378106124,0.03105277,213.1,213.06,0.03495512]
[1757378106317,7.46,213.09,213.06,0.03495512]
[1757378106520,0.03105277,213.1,213.06,0.03495512]
[1757378106729,7.46,213.09,213.06,0.03495512]
[1757378106930,5.21239229,213.1,213.06,0.03495512]
[1757378107126,7.46,213.09,213.06,0.03495512]
[1757378107335,12.64133952,213.09,212.97,4.47619492]
[1757378107524,0.03105277,213.1,212.94,2.66619492]
[1757378107525,2.66619492,213.05,212.94,2.66619492]
[1757378107836,7.46,213.04,212.94,2.66619492]
[1757378108627,0.03136561,213.01,212.94,2.66619492]
[1757378108820,0.03136561,213.01,212.98,1.84]
[1757378109223,0.03136561,213.01,212.97,2.66619492]
[1757378109427,7.49136561,213.01,212.97,2.66619492]
[1757378109835,0.03136561,213.01,212.98,1.84]
[1757378110327,0.03136561,213.01,213.0,1.84]
[1757378111537,0.03136561,213.01,212.94,118.14]
[1757378111750,7.49136561,213.01,212.97,2.66619492]
[1757378114235,0.03136561,213.01,212.94,2.66619492]
[1757378115829,0.03136561,213.01,212.98,1.85]
[1757378116529,0.03136561,213.01,212.97,2.66619492]
[1757378116729,0.03136561,213.01,212.98,1.85]
[1757378116924,0.03136561,213.01,212.97,2.66619492]
[1757378117334,0.03136561,213.01,212.98,1.85]